bitfinex-derivatives/quotes_SOLF0:USTF0_20250903
["timestamp","ask_amount","ask_price","bid_price","bid_amount"]
[1756894483762,13.17252099,209.53,209.45,9.68085544]
[1756894484464,1.75085544,209.52,209.37,7.25]
[1756894484664,7.45,209.49,209.43,1.75085544]
[1756894484867,7.45,209.49,209.41,7.25]
[1756894484868,7.45,209.49,209.41,9.00085544]
[1756894485063,7.45,209.47,209.41,9.00085544]
[1756894488963,7.45,209.47,209.41,7.25]
[1756894489169,9.20085544,209.47,209.41,7.25]
[1756894489669,9.20085544,209.47,209.36,7.25]
[1756894489864,9.20085544,209.47,209.38,1.75085544]
[1756894490065,7.45,209.44,209.38,1.75085544]
[1756894490865,7.45,209.44,209.36,9.00085544]
[1756894491471,7.45,209.44,209.38,1.75085544]
[1756894491665,7.45,209.44,209.3,111.49254643]
[1756894491666,1.75085544,209.47,209.4,1.75085544]
[1756894491971,7.45,209.48,209.42,1.75085544]
[1756894492666,9.20085544,209.48,209.42,1.75085544]
[1756894492867,9.20085544,209.48,209.4,1.75085544]
[1756894494070,5.35252099,209.5,209.42,1.75085544]
[1756894494267,14.55337643,209.52,209.44,1.75085544]
[1756894495474,12.80252099,209.52,209.46,1.75085544]
[1756894495771,7.45,209.52,209.48,1.75085544]
[1756894495976,5.35252099,209.55,209.49,1.75085544]
[1756894496275,7.45,209.57,209.5,7.25]
[1756894496469,7.45,209.57,209.51,1.75085544]
[1756894496770,7.45,209.57,209.48,1.75085544]
[1756894496976,1.75085544,209.56,209.48,1.75085544]
[1756894497172,7.45,209.57,209.48,9.00085544]
[1756894497577,9.20085544,209.57,209.48,9.00085544]
[1756894497772,9.20085544,209.57,209.5,1.75085544]
[1756894498178,7.45,209.57,209.5,1.75085544]
[1756894500469,9.20085544,209.57,209.49,1.75085544]
[1756894500776,7.45,209.54,209.46,1.75085544]
[1756894500973,7.45,209.54,209.48,1.75085544]
[1756894501484,9.20085544,209.58,209.5,1.75085544]
[1756894502179,7.45,209.58,209.47,7.25]
[1756894502376,9.20085544,209.58,209.5,1.75085544]
[1756894502576,9.20085544,209.58,209.51,1.75085544]
[1756894502775,7.45,209.58,209.51,1.75085544]
[1756894502975,5.35252099,209.62,209.57,1.75085544]
[1756894503182,7.45,209.65,209.59,1.75085544]
[1756894503376,9.20085544,209.65,209.59,1.75085544]
[1756894503880,7.45,209.65,209.58,9.00085544]
[1756894504271,9.20085544,209.65,209.58,9.00085544]
[1756894504879,7.45,209.62,209.53,7.25]
[1756894505375,34.63,209.67,209.58,1.75085544]
[1756894505575,1.75085544,209.66,209.58,1.75085544]
[1756894505876,1.75085544,209.62,209.52,7.25]
[1756894506091,7.45,209.61,209.52,7.25]
[1756894506280,1.75085544,209.6,209.52,9.00085544]
[1756894506582,7.45,209.57,209.5,1.75085544]
[1756894506780,1.75085544,209.56,209.48,9.00085544]
[1756894506982,1.75085544,209.56,209.48,7.25]
[1756894507180,1.75085544,209.56,209.48,9.00085544]
[1756894507384,7.45,209.57,209.5,1.75085544]
[1756894507682,7.45,209.55,209.48,7.25]
[1756894508180,12.78721214,209.6,209.51,1.75085544]
[1756894508372,7.45,209.6,209.53,1.75085544]
[1756894508575,9.20085544,209.64,209.56,7.25]
[1756894508772,9.20085544,209.64,209.56,9.00085544]
[1756894509172,7.45,209.59,209.52,1.75085544]
[1756894509779,9.20085544,209.59,209.52,1.75085544]
[1756894509983,9.20085544,209.59,209.5,1.75085544]
[1756894510184,9.20085544,209.59,209.49,7.25]
[1756894510381,9.20085544,209.59,209.5,1.75085544]
[1756894511084,7.45,209.59,209.52,1.75085544]
[1756894511885,47.47721214,209.63,209.54,1.75085544]
[1756894512086,1.75085544,209.62,209.54,1.75085544]
[1756894512581,7.78,209.61,209.54,1.75085544]
[1756894512783,7.78,209.61,209.53,7.28]
[1756894512985,7.78,209.59,209.52,1.75085544]
[1756894513374,1.75085544,209.58,209.49,7.28]
[1756894513583,1.75085544,209.58,209.5,1.75085544]
[1756894514483,9.53085544,209.59,209.5,1.75085544]
[1756894515283,9.53085544,209.59,209.52,1.75085544]
[1756894515585,1.75085544,209.62,209.55,7.28]
[1756894515886,7.08806758,209.62,209.55,7.28]
[1756894516087,13.11721214,209.63,209.56,1.75085544]
[1756894516988,7.78,209.63,209.58,1.75085544]
[1756894517190,5.33721214,209.65,209.58,1.75085544]
[1756894517484,17.53667366,209.67,209.6,1.75085544]
[1756894517485,13.11721214,209.67,209.6,1.75085544]
[1756894517684,326.29721214,209.68,209.62,1.75085544]
[1756894517884,5.33721214,209.7,209.64,9.03085544]
[1756894518087,5.33721214,209.72,209.66,1.75085544]
[1756894518293,7.78,209.72,209.64,7.28]
[1756894518486,123.85721214,209.73,209.6,1.75085544]
[1756894518487,1.75085544,209.68,209.6,1.75085544]
[1756894518684,7.78,209.67,209.57,7.28]
[1756894519082,5.33721214,209.69,209.61,1.75085544]
[1756894519083,7.78,209.69,209.61,1.75085544]
[1756894519291,7.78,209.69,209.59,1.75085544]
[1756894519292,7.78,209.67,209.59,1.75085544]
[1756894519589,7.78,209.67,209.6,1.75085544]
[1756894519983,1.75085544,209.69,209.62,1.75085544]
[1756894520383,1.75085544,209.69,209.61,1.75085544]
[1756894520384,7.78,209.68,209.61,1.75085544]
[1756894521180,7.78,209.68,209.58,7.28]
[1756894521393,7.78,209.66,209.58,9.03085544]
[1756894521786,7.78,209.66,209.58,7.28]
[1756894521990,7.78,209.66,209.59,1.75085544]
[1756894522191,7.78,209.66,209.51,37.12]
[1756894522394,9.53085544,209.66,209.58,1.75085544]
[1756894522589,9.53085544,209.66,209.55,7.28]
[1756894522892,9.53085544,209.66,209.57,1.75085544]
[1756894523192,9.53085544,209.66,209.55,7.28]
[1756894523388,7.78,209.63,209.56,1.75085544]
[1756894523792,5.33721214,209.68,209.58,1.75085544]
[1756894523793,13.11721214,209.68,209.58,1.75085544]
[1756894523993,1.75085544,209.67,209.55,7.28]
[1756894524194,1.75085544,209.67,209.59,1.75085544]
[1756894524588,9.53085544,209.68,209.59,1.75085544]
[1756894524796,7.78,209.68,209.61,1.75085544]
[1756894525090,7.78,209.68,209.6,1.75085544]
[1756894526388,1.75085544,209.7,209.62,1.75085544]
[1756894526989,129.07085544,209.72,209.64,1.75085544]
[1756894527190,7.78,209.72,209.66,1.75085544]
[1756894527397,1.75085544,209.75,209.68,1.75085544]
[1756894527690,1.75085544,209.75,209.66,7.28]
[1756894527893,1.75085544,209.75,209.68,1.75085544]
[1756894528296,1.75085544,209.75,209.66,7.28]
[1756894528495,1.75085544,209.75,209.67,1.75085544]
[1756894528692,8.6102616,209.76,209.66,7.28]
[1756894528890,7.78,209.76,209.71,1.75085544]
[1756894529089,1.75085544,209.79,209.68,7.28]
[1756894529292,7.78,209.78,209.71,1.75085544]
[1756894529495,7.78,209.78,209.68,7.28]
[1756894529791,7.78,209.78,209.69,4.24518247]
[1756894529997,320.82,209.8,209.7,7.28]
[1756894531289,320.82,209.8,209.55,3.95973176]
[1756894531491,7.78,209.79,209.63,4.24518247]
[1756894531690,7.78,209.79,209.64,7.28]
[1756894532890,7.78,209.79,209.68,7.28]
[1756894534891,7.78,209.79,209.64,7.28]
[1756894536395,120.44,209.78,209.64,7.28]
[1756894538102,7.78,209.79,209.64,7.28]
[1756894538803,7.78,209.79,209.67,7.28]
[1756894539804,120.54,209.8,209.68,6.75728566]
[1756894540001,123.07828302,209.83,209.69,7.28]
[1756894541396,7.78,209.83,209.69,7.28]
[1756894542202,102.08,209.85,209.69,7.28]
[1756894543095,102.08,209.85,209.69,7.93]
[1756894543096,7.18,209.84,209.69,7.93]
[1756894543906,7.18,209.84,209.7,7.93]
[1756894544496,7.18,209.84,209.7,55.68]
[1756894544699,7.18,209.84,209.71,7.93]
[1756894544901,7.18,209.84,209.71,4.2912]
[1756894545203,7.18,209.84,209.72,7.93]
[1756894545399,0.8297568,209.91,209.73,7.93]
[1756894545606,7.18,209.9,209.76,6.75728566]
[1756894545910,7.18,209.9,209.77,7.93]
[1756894546206,7.18,209.9,209.78,60.29]
[1756894546399,7.18,209.9,209.79,7.93]
[1756894546799,68.84,209.92,209.79,7.93]
[1756894548104,69.66957877,209.92,209.73,7.93]
[1756894551911,7.18,209.89,209.73,7.93]
[1756894552105,6.75728566,209.9,209.67,49.84]
[1756894552300,7.18,209.89,209.68,7.93]
[1756894553504,7.18,209.87,209.68,7.93]
[1756894555699,6.75728566,209.85,209.68,7.93]
[1756894555910,7.18,209.84,209.68,7.93]
[1756894556805,7.18,209.82,209.68,7.93]
[1756894557105,7.18,209.79,209.63,7.93]
[1756894558405,46.88,209.78,209.63,7.93]
[1756894558608,7.18,209.77,209.63,7.93]
[1756894560408,7.18,209.77,209.58,7.93]
[1756894560708,39.62,209.76,209.58,12.2238]
[1756894560906,39.62,209.76,209.59,7.93]
[1756894561204,7.18,209.75,209.59,7.93]
[1756894563813,7.18,209.75,209.63,7.93]
[1756894564316,23.6,209.78,209.63,7.93]
[1756894564515,23.6,209.78,209.65,7.93]
[1756894564708,7.18,209.8,209.65,7.93]
[1756894564913,7.18,209.8,209.68,7.93]
[1756894570618,7.18,209.8,209.68,12.2218]
[1756894570917,7.18,209.8,209.69,7.93]
[1756894571919,7.85,209.86,209.69,7.93]
[1756894572118,63.61,209.86,209.69,7.93]
[1756894572821,7.85,209.86,209.71,6.75728566]
[1756894573119,7.85,209.86,209.73,7.63]
[1756894574021,7.85,209.86,209.77,7.63]
[1756894576220,7.85,209.91,209.77,7.63]
[1756894579714,7.85,209.91,209.77,4.2899]
[1756894579914,7.85,209.91,209.78,7.63]
[1756894582622,7.85,209.91,209.82,7.63]
[1756894582821,7.85,209.96,209.82,7.63]
[1756894583426,7.85,209.96,209.82,11.9189]
[1756894583628,7.85,209.96,209.83,7.63]
[1756894584230,121.2,209.98,209.87,7.63]
[1756894584422,1407.85,210.0,209.87,7.63]
[1756894585331,1407.85,210.0,209.87,4.288]
[1756894585524,1407.85,210.0,209.88,7.63]
[1756894586524,1407.85,210.0,209.88,92.09]
[1756894586723,1407.85,210.0,209.89,7.63]
[1756894586925,1407.85,210.0,209.9,7.63]
[1756894587125,1407.85,210.0,209.91,6.75728566]
[1756894587825,1407.85,210.0,209.9,7.63]
[1756894588029,7.85,209.99,209.86,83.36728566]
[1756894588225,7.85,209.99,209.86,14.38728566]
[1756894588424,1400.0,210.0,209.86,14.38728566]
[1756894588632,7.85,209.99,209.86,7.63]
[1756894589025,129.19,209.99,209.86,7.63]
[1756894589625,129.19,209.99,209.84,6.75728566]
[1756894592031,129.19,209.99,209.85,7.63]
[1756894596244,143.53,209.99,209.85,7.63]
[1756894596447,7.85,209.97,209.81,14.38728566]
[1756894596644,7.85,209.95,209.82,7.63]
[1756894599452,7.85,209.95,209.85,4.23778756]
[1756894599652,7.85,209.95,209.85,11.86778756]
[1756894601152,121.24,209.96,209.85,11.86778756]
[1756894601354,7.85,209.95,209.85,11.86778756]
[1756894601956,7.85,209.95,209.85,7.63]
[1756894604753,7.85,209.95,209.88,7.34]
[1756894609353,7.26,209.94,209.82,7.34]
[1756894609551,7.26,209.94,209.79,4.23778756]
[1756894609956,12.59721214,209.94,209.79,4.23778756]
[1756894610154,12.59721214,209.94,209.78,7.34]
[1756894610348,19.67721214,209.93,209.78,7.34]
[1756894610548,9.5749997,209.91,209.76,103.6306791]
[1756894610753,120.86,209.9,209.76,103.6306791]
[1756894610955,7.26,209.89,209.75,7.34]
[1756894611855,120.84,209.88,209.75,7.34]
[1756894612155,7.26,209.87,209.75,7.34]
[1756894612757,12.59721214,209.87,209.75,7.34]
[1756894612946,128.04,209.87,209.75,7.34]
[1756894613955,133.37721214,209.87,209.75,7.34]
[1756894614457,7.26,209.85,209.71,7.34]
[1756894615053,12.59721214,209.85,209.71,7.34]
[1756894615755,7.26,209.85,209.71,7.34]
[1756894616354,66.9,209.84,209.72,4.23778756]
[1756894616554,66.9,209.84,209.73,7.34]
[1756894616957,7.26,209.85,209.73,7.34]
[1756894617658,7.26,209.85,209.78,1.74541855]
[1756894619554,7.26,209.85,209.76,7.34]
[1756894619755,7.26,209.85,209.78,1.74541855]
[1756894620158,7.26,209.85,209.76,7.34]
[1756894620657,7.26,209.85,209.79,1.74541855]
[1756894621058,7.26,209.84,209.77,1.74541855]
[1756894621261,7.26,209.84,209.79,9.08541855]
[1756894622460,7.26,209.84,209.8,1.74541855]
[1756894622663,7.26,209.9,209.82,1.74541855]
[1756894622859,109.78,209.92,209.86,1.74541855]
[1756894623055,7.26,209.91,209.84,1.74541855]
[1756894623660,7.26,209.91,209.81,7.34]
[1756894623857,7.26,209.91,209.85,1.74541855]
[1756894624459,7.26,209.91,209.81,7.34]
[1756894624656,7.26,209.88,209.8,1.74541855]
[1756894625054,7.26,209.86,209.8,1.74541855]
[1756894625253,1.74541855,209.85,209.7,43.72]
[1756894625460,7.26,209.84,209.76,1.74541855]
[1756894626356,7.26,209.84,209.78,1.74541855]
[1756894627463,7.26,209.84,209.69,320.26]
[1756894627464,16.24,209.9,209.82,1.74541855]
[1756894627660,7.26,209.89,209.79,7.34]
[1756894627962,9.00541855,209.89,209.81,1.74541855]
[1756894628457,7.26,209.89,209.83,1.74541855]
[1756894631060,7.26,209.89,209.81,1.74541855]
[1756894631261,7.26,209.87,209.79,7.34]
[1756894631561,1.74541855,209.85,209.77,1.74541855]
[1756894632162,1.74541855,209.85,209.75,7.94]
[1756894632365,1.74541855,209.85,209.77,1.74541855]
[1756894632865,9.00541855,209.87,209.79,1.74541855]
[1756894634162,7.26,209.87,209.79,1.74541855]
[1756894634366,9.00541855,209.87,209.79,1.74541855]
[1756894634566,9.00541855,209.87,209.78,1.74541855]
[1756894635067,7.26,209.87,209.8,1.74541855]
[1756894635564,9.00541855,209.87,209.8,1.74541855]
[1756894636166,7.26,209.87,209.8,1.74541855]
[1756894636568,7.26,209.87,209.79,7.94]
[1756894636767,7.26,209.87,209.79,9.68541855]
[1756894640371,1.74541855,209.82,209.75,1.74541855]
[1756894640574,1.74541855,209.82,209.73,1.74541855]
[1756894641071,1.74541855,209.8,209.72,7.94]
[1756894641271,1.74541855,209.79,209.72,7.94]
[1756894641766,7.27,209.81,209.72,7.94]
[1756894641968,7.27,209.81,209.74,1.74541855]
[1756894642267,7.27,209.81,209.72,7.94]
[1756894642472,7.27,209.78,209.72,7.94]
[1756894642772,7.27,209.78,209.72,9.68541855]
[1756894644272,7.27,209.83,209.76,1.74541855]
[1756894644475,7.27,209.83,209.78,1.74541855]
[1756894644675,7.27,209.84,209.78,1.74541855]
[1756894645775,7.27,209.84,209.78,9.68541855]
[1756894645977,1.74541855,209.87,209.78,9.68541855]
[1756894646277,1.74541855,209.87,209.79,1.74541855]
[1756894646480,1.74541855,209.85,209.78,7.94]
[1756894647274,1.74541855,209.83,209.75,1.74541855]
[1756894647476,9.01541855,209.83,209.75,1.74541855]
[1756894647979,9.01541855,209.83,209.74,7.94]
[1756894648179,9.01541855,209.83,209.75,1.74541855]
[1756894648581,9.01541855,209.83,209.74,7.94]
[1756894649079,9.01541855,209.83,209.75,1.74541855]
[1756894649273,9.01541855,209.83,209.74,7.94]
[1756894649472,9.01541855,209.83,209.75,1.74541855]
[1756894649877,9.01541855,209.83,209.74,9.68541855]
[1756894650475,7.27,209.83,209.74,9.68541855]
[1756894650672,1.74541855,209.82,209.74,9.68541855]
[1756894651072,1.74541855,209.78,209.7,1.74541855]
[1756894651380,9.01541855,209.78,209.7,1.74541855]
[1756894652173,7.27,209.78,209.72,1.74541855]
[1756894652678,7.27,209.78,209.71,1.74541855]
[1756894653982,7.27,209.78,209.69,7.94]
[1756894654182,7.27,209.78,209.7,1.74541855]
[1756894654877,1.74541855,209.77,209.69,7.94]
[1756894655479,5.33721214,209.81,209.63,320.42]
[1756894655480,1.74541855,209.73,209.66,1.74541855]
[1756894655980,1.74541855,209.73,209.64,7.94]
[1756894656184,1.74541855,209.73,209.66,1.74541855]
[1756894656681,1.74541855,209.73,209.64,7.94]
[1756894656886,7.27,209.74,209.65,1.74541855]
[1756894657187,9.01541855,209.74,209.65,1.74541855]
[1756894657579,5.33721214,209.8,209.67,1.74541855]
[1756894657784,1.74541855,209.78,209.69,9.68541855]
[1756894658586,7.27,209.79,209.74,1.74541855]
[1756894658789,7.27,209.83,209.75,9.68541855]
[1756894658986,9.01541855,209.83,209.75,9.68541855]
[1756894659290,1.74541855,209.81,209.73,1.74541855]
[1756894659491,7.27,209.83,209.72,7.94]
[1756894660585,8.06562691,209.84,209.67,2.72841477]
[1756894660793,5.33721214,209.81,209.68,7.94]
[1756894660986,7.27,209.8,209.68,7.94]
[1756894662191,7.27,209.8,209.71,2.72841477]
[1756894662391,7.27,209.8,209.72,7.21]
[1756894663993,7.61,209.84,209.72,7.21]
[1756894664189,7.61,209.84,209.74,2.72841477]
[1756894664995,7.61,209.84,209.73,2.72841477]
[1756894667495,7.61,209.84,209.72,7.21]
[1756894670200,7.61,209.84,209.74,7.21]
[1756894673203,7.61,209.84,209.76,2.72841477]
[1756894673401,7.61,209.84,209.76,9.93841477]
[1756894675111,7.61,209.84,209.72,2.72841477]
[1756894675302,7.61,209.83,209.71,9.93841477]
[1756894675508,7.61,209.83,209.71,7.21]
[1756894675710,12.94721214,209.83,209.71,7.21]
[1756894676411,7.61,209.83,209.72,7.21]
[1756894679511,10.33841477,209.83,209.72,7.21]
[1756894680317,15.67562691,209.83,209.72,7.21]
[1756894680912,7.61,209.83,209.74,7.21]
[1756894683214,5.33721214,209.82,209.7,7.21]
[1756894683418,12.94721214,209.81,209.7,7.21]
[1756894683807,7.61,209.81,209.7,7.21]
[1756894684415,12.94721214,209.81,209.7,7.21]
[1756894684917,7.61,209.81,209.7,7.21]
[1756894685216,12.94721214,209.81,209.7,7.21]
[1756894685815,7.61,209.79,209.7,7.21]
[1756894686019,12.94721214,209.79,209.7,7.21]
[1756894686516,5.33721214,209.8,209.72,7.21]
[1756894686717,7.61,209.83,209.75,7.21]
[1756894689620,12.94721214,209.87,209.77,2.72841477]
[1756894689820,12.94721214,209.87,209.78,7.21]
[1756894690018,7.61,209.87,209.78,7.21]
[1756894692821,325.71721214,209.9,209.8,7.85]
[1756894693220,320.38,209.9,209.83,7.85]
[1756894694121,5.33721214,209.94,209.83,7.85]
[1756894694323,80.57814545,209.95,209.86,7.85]
[1756894695520,80.57814545,209.95,209.88,2.72841477]
[1756894695719,133.04721214,209.99,209.89,7.85]
[1756894695916,127.71,209.99,209.89,7.85]
[1756894700122,127.71,209.99,209.92,7.85]
[1756894700730,7.45,209.99,209.92,7.85]
[1756894701420,7.45,209.99,209.9,2.72841477]
[1756894706527,7.45,209.99,209.88,7.85]
[1756894706733,7.45,209.99,209.88,10.57841477]
[1756894707635,7.45,209.99,209.88,7.85]
[1756894708233,119.8,209.98,209.88,10.57841477]
[1756894711635,7.45,209.97,209.88,10.57841477]
[1756894712337,119.62,209.98,209.89,7.85]
[1756894715141,119.62,209.98,209.89,10.57841477]
[1756894716340,119.62,209.98,209.92,2.72841477]
[1756894716542,119.62,209.98,209.93,7.85]
[1756894716736,119.62,209.98,209.92,2.72841477]
[1756894716937,119.62,209.98,209.93,7.85]
[1756894717136,119.62,209.98,209.92,2.72841477]
[1756894717339,7.45,209.99,209.93,7.85]
[1756894718135,7.45,209.99,209.89,7.85]
[1756894719539,7.45,209.99,209.95,1.74312359]
[1756894719739,1400.0,210.0,209.96,7.85]
[1756894719940,1400.0,210.0,209.95,1.74312359]
[1756894720240,7.45,209.99,209.95,1.74312359]
[1756894720943,7.45,209.99,209.95,9.59312359]
[1756894721341,1400.0,210.0,209.95,1.74312359]
[1756894721538,7.45,209.99,209.93,1.74312359]
[1756894723648,126.67,209.99,209.91,9.59312359]
[1756894724245,126.67,209.99,209.93,1.74312359]
[1756894724642,126.67,209.99,209.92,1.74312359]
[1756894725349,1.74312359,209.98,209.91,7.85]
[1756894726950,126.67,209.99,209.92,1.74312359]
[1756894728950,126.67,209.99,209.87,7.59]
[1756894728951,1.74312359,209.98,209.87,7.59]
[1756894729152,7.52,209.97,209.89,1.74312359]
[1756894729350,7.52,209.91,209.83,1.74312359]
[1756894729551,119.04,209.9,209.83,1.74312359]
[1756894730154,7.52,209.89,209.83,1.74312359]
[1756894731048,7.52,209.89,209.8,7.59]
[1756894731247,7.52,209.89,209.82,1.74312359]
[1756894731848,120.78312359,209.9,209.8,9.33312359]
[1756894731849,7.52,209.87,209.8,9.33312359]
[1756894732254,7.52,209.87,209.8,7.59]
[1756894732554,7.52,209.87,209.8,9.33312359]
[1756894732753,7.52,209.87,209.83,7.59]
[1756894733348,7.52,209.87,209.82,1.74312359]
[1756894733550,7.52,209.87,209.82,9.33312359]
[1756894733748,9.26312359,209.89,209.79,1.74312359]
[1756894733956,7.52,209.86,209.79,1.74312359]
[1756894734154,7.52,209.86,209.78,7.59]
[1756894734356,7.52,209.86,209.79,1.74312359]
[1756894735150,7.52,209.89,209.81,9.33312359]
[1756894737344,7.52,209.89,209.81,7.59]
[1756894737750,7.52,209.89,209.82,1.74312359]
[1756894738457,9.26312359,209.94,209.86,1.74312359]
[1756894739553,1.74312359,209.9,209.82,7.59]
[1756894739752,7.52,209.89,209.81,1.74312359]
[1756894740552,7.52,209.89,209.8,7.59]
[1756894740553,7.52,209.89,209.83,1.74312359]
[1756894740746,9.26312359,209.89,209.8,1.74312359]
[1756894740954,7.52,209.89,209.8,9.33312359]
[1756894741151,7.52,209.89,209.82,1.74312359]
[1756894741847,7.52,209.89,209.8,7.59]
[1756894742053,7.52,209.87,209.79,1.74312359]
[1756894742358,7.52,209.9,209.83,1.74312359]
[1756894744360,9.26312359,209.9,209.83,1.74312359]
[1756894744753,7.52,209.9,209.83,1.74312359]
[1756894746557,7.52,209.9,209.82,7.59]
[1756894746757,7.52,209.9,209.83,1.74312359]
[1756894746959,7.52,209.87,209.81,1.74312359]
[1756894747547,7.52,209.87,209.78,7.59]
[1756894747748,7.52,209.87,209.8,1.74312359]
[1756894748561,7.52,209.85,209.77,1.74312359]
[1756894748752,7.52,209.83,209.77,1.74312359]
[1756894748952,7.52,209.81,209.75,1.74312359]
[1756894750563,7.52,209.87,209.79,9.33312359]
[1756894750762,7.08033573,209.93,209.85,9.33312359]
[1756894750960,7.52,209.92,209.85,1.74312359]
[1756894751856,7.52,209.92,209.81,7.59]
[1756894752058,7.52,209.92,209.85,1.74312359]
[1756894753553,7.52,209.94,209.89,1.74312359]
[1756894753753,126.66,209.95,209.89,1.74312359]
[1756894754762,126.66,209.95,209.85,7.91]
[1756894754963,126.66,209.95,209.89,1.74312359]
[1756894755362,126.66,209.95,209.91,1.74312359]
[1756894756464,7.52,209.94,209.91,1.74312359]
[1756894756664,7.52,209.94,209.89,9.65312359]
[1756894757770,7.52,209.94,209.9,7.91]
[1756894757966,329.48312359,209.99,209.91,1.74312359]
[1756894758471,329.48312359,209.99,209.9,9.65312359]
[1756894759974,327.74,209.99,209.92,1.74312359]
[1756894760171,7.52,209.99,209.92,1.74312359]
[1756894762276,1400.0,210.0,209.96,1.74312359]
[1756894762477,1407.52,210.0,209.96,9.65312359]
[1756894763781,1400.0,210.0,209.97,7.91]
[1756894764476,1400.0,210.0,209.89,4.2874]
[1756894764682,1407.52,210.0,209.96,1.74312359]
[1756894765683,1407.52,210.0,209.96,9.65312359]
[1756894766085,1400.0,210.0,209.95,1.74312359]
[1756894766280,1400.0,210.0,209.96,7.91]
[1756894766486,1407.52,210.0,209.96,7.91]
[1756894767679,1407.52,210.0,209.82,324.19531269]
[1756894767680,1400.0,210.0,209.92,7.91]
[1756894767885,7.52,209.99,209.95,1.74312359]
[1756894768283,1400.0,210.0,209.95,1.74312359]
[1756894768483,7.52,209.99,209.95,1.74312359]
[1756894768885,1400.0,210.0,209.95,1.74312359]
[1756894769079,7.52,209.99,209.95,1.74312359]
[1756894769787,1400.0,210.0,209.97,1.74312359]
[1756894770184,1407.52,210.0,209.97,1.74312359]
[1756894770385,7.52,209.99,209.89,56.07]
[1756894770685,7.52,209.99,209.96,1.74312359]
[1756894771184,1400.0,210.0,209.98,9.65312359]
[1756894771384,1400.0,210.0,209.98,1.74312359]
[1756894771985,1400.0,210.0,209.94,7.91]
[1756894772286,1407.52,210.0,209.98,1.74312359]
[1756894772479,1400.0,210.0,209.98,1.74312359]
[1756894773284,1400.0,210.0,209.99,7.91]
[1756894775180,1400.0,210.0,209.98,1.74312359]
[1756894776786,1400.0,210.0,209.98,9.65312359]
[1756894781489,1400.0,210.0,209.98,10.63128951]
[1756894785292,1400.0,210.0,209.98,2.72128951]
[1756894786394,1407.67,210.0,209.98,2.72128951]
[1756894788798,1303.15459699,210.0,209.99,7.39]
[1756894789096,1288.17368876,210.0,209.99,7.39]
[1756894789794,1191.32828575,210.0,209.99,7.39]
[1756894789994,1179.32337752,210.0,209.99,7.39]
[1756894790790,1094.48288274,210.0,209.99,7.39]
[1756894790989,1082.47797451,210.0,209.99,7.39]
[1756894791895,1082.47797451,210.0,209.99,7.87]
[1756894792098,985.6325715,210.0,209.99,7.87]
[1756894793500,985.6325715,210.0,209.99,0.48]
[1756894794191,985.6325715,210.0,209.99,7.87]
[1756894794394,985.6325715,210.0,209.99,126.67]
[1756894795503,985.6325715,210.0,209.99,7.87]
[1756894795801,985.6325715,210.0,209.99,126.67]
[1756894796502,985.6325715,210.0,209.99,119.28]
[1756894796892,985.6325715,210.0,209.99,0.48]
[1756894797097,993.3025715,210.0,209.99,51.6]
[1756894797296,985.6325715,210.0,209.99,51.6]
[1756894799707,985.6325715,210.0,209.97,2.72128951]
[1756894799905,985.6325715,210.0,209.98,126.17]
[1756894800196,985.6325715,210.0,209.98,130.4557]
[1756894800403,985.6325715,210.0,209.99,7.39]
[1756894800995,985.6325715,210.0,209.99,118.71]